bitfinex/quotes_SOLUSD_20220228
["timestamp","ask_amount","ask_price","bid_price","bid_amount"]
[1646012126150,2.17378004,86.314,86.226,118.0]
[1646012126350,2.17378004,86.314,86.23,14.05]
[1646012126551,2.17378004,86.314,86.231,6.0]
[1646012128451,2.17378004,86.314,86.232,118.0]
[1646012128652,2.17378004,86.314,86.234,118.0]
[1646012128953,1.97267186,86.321,86.236,118.0]
[1646012129153,1.97267186,86.321,86.24,14.05]
[1646012129354,1.97267186,86.321,86.241,6.0]
[1646012129553,1.97267186,86.321,86.242,118.0]
[1646012129855,2.24580717,86.326,86.243,6.0]
[1646012130554,2.24580717,86.326,86.242,118.0]
[1646012130756,2.24580717,86.326,86.244,118.0]
[1646012130954,2.24580717,86.326,86.247,60.62249491]
[1646012131154,2.24580717,86.326,86.249,118.0]
[1646012131355,2.24580717,86.326,86.25,20.05]
[1646012131554,2.24580717,86.326,86.25,14.05]
[1646012131756,23.08458116,86.325,86.247,60.62249491]
[1646012131955,1.78388257,86.324,86.247,60.62249491]
[1646012132154,4.53067178,86.324,86.247,60.62249491]
[1646012132360,1.66828394,86.322,86.247,60.62249491]
[1646012132959,1.66828394,86.322,86.248,124.0]
[1646012133558,1.66828394,86.322,86.248,6.0]
[1646012133758,1.66828394,86.322,86.247,60.62249491]
[1646012133961,2.74678921,86.321,86.247,60.62249491]
[1646012134658,17.3993,86.32,86.223,118.0]
[1646012134863,119.80106827,86.319,86.22,14.05]
[1646012135060,1.8969981,86.318,86.156,79.58784732]
[1646012135258,1.8969981,86.318,86.18,14.05]
[1646012135458,118.0,86.309,86.181,6.0]
[1646012135659,1.952718,86.306,86.183,118.0]
[1646012135860,1.952718,86.306,86.185,118.0]
[1646012136058,1.952718,86.306,86.191,118.0]
[1646012136261,17.4053,86.29,86.193,118.0]
[1646012136464,49.2094,86.289,86.195,118.0]
[1646012136660,2.06765785,86.288,86.196,124.0]
[1646012136860,2.06765785,86.288,86.197,6.0]
[1646012136861,4.81444706,86.288,86.197,6.0]
[1646012137463,2.74678921,86.287,86.197,6.0]
[1646012138060,2.74678921,86.287,86.193,118.0]
[1646012138259,2.74678921,86.287,86.195,118.0]
[1646012138460,2.74678921,86.287,86.196,124.0]
[1646012138660,2.74678921,86.287,86.2,14.05]
[1646012138861,2.74678921,86.287,86.202,118.0]
[1646012139060,2.74678921,86.287,86.204,118.0]
[1646012139259,2.74678921,86.287,86.205,6.0]
[1646012139462,2.74678921,86.287,86.201,6.0]
[1646012140862,2.74678921,86.287,86.2,14.05]
[1646012141062,17.4073,86.28,86.18,14.05]
[1646012141263,2.05791383,86.279,86.186,6.0]
[1646012141463,4.80470304,86.279,86.186,6.0]
[1646012141663,2.74678921,86.278,86.186,124.0]
[1646012141865,2.74678921,86.278,86.186,6.0]
[1646012141866,120.19227302,86.276,86.186,6.0]
[1646012142064,2.24192133,86.275,86.183,6.0]
[1646012142264,17.4117,86.26,86.183,6.0]
[1646012142463,1.84602873,86.259,86.183,6.0]
[1646012142863,4.59281794,86.259,86.183,6.0]
[1646012143064,2.21971947,86.258,86.183,6.0]
[1646012143465,2.74678921,86.286,86.183,6.0]
[1646012143764,2.12608746,86.284,86.183,6.0]
[1646012144167,2.12608746,86.284,86.184,118.0]
[1646012144366,2.12608746,86.284,86.183,6.0]
[1646012144367,2.12608746,86.284,86.186,118.0]
[1646012144570,2.12608746,86.284,86.188,118.0]
[1646012144767,2.12608746,86.284,86.19,118.0]
[1646012144966,2.12608746,86.284,86.192,118.0]
[1646012145168,2.12608746,86.284,86.194,118.0]
[1646012145367,2.12608746,86.284,86.195,6.0]
[1646012145567,2.12608746,86.284,86.196,118.0]
[1646012145772,2.74678921,86.283,86.197,6.0]
[1646012146567,2.74678921,86.283,86.198,118.0]
[1646012146969,2.74678921,86.294,86.212,50.364797]
[1646012147168,2.74678921,86.294,86.213,118.0]
[1646012147370,2.08765549,86.301,86.215,118.0]
[1646012147569,2.08765549,86.301,86.221,118.0]
[1646012147772,2.08765549,86.301,86.22,14.05]
[1646012148071,25.17324783,86.3,86.214,6.0]
[1646012148270,2.27645966,86.299,86.213,6.0]
[1646012148470,5.02324887,86.299,86.213,6.0]
[1646012148670,5.02324887,86.299,86.214,118.0]
[1646012148870,5.02324887,86.299,86.213,6.0]
[1646012148871,2.27645966,86.299,86.216,118.0]
[1646012149072,79.91239332,86.302,86.221,118.0]
[1646012149272,1.77694208,86.301,86.223,118.0]
[1646012149498,2.74678921,86.312,86.225,118.0]
[1646012149676,2.74678921,86.322,86.227,118.0]
[1646012149873,2.74678921,86.322,86.22,14.05]
[1646012149874,2.74678921,86.322,86.231,118.0]
[1646012150174,2.74678921,86.322,86.233,118.0]
[1646012150376,2.74678921,86.322,86.235,118.0]
[1646012150575,2.74678921,86.322,86.236,124.0]
[1646012150777,2.74678921,86.322,86.234,6.0]
[1646012150778,6.4935012,86.322,86.234,6.0]
[1646012151275,2.74678921,86.321,86.231,6.0]
[1646012152074,1.89882635,86.319,86.231,6.0]
[1646012152576,2.74678921,86.318,86.231,6.0]
[1646012154384,2.74678921,86.318,86.21,14.05]
[1646012154586,4.95073117,86.318,86.201,23.3659]
[1646012154984,2.74678921,86.317,86.217,6.0]
[1646012155488,2.74678921,86.317,86.22,14.05]
[1646012155687,2.74678921,86.317,86.221,6.0]
[1646012156284,17.4014,86.31,86.221,6.0]
[1646012156486,2.25851921,86.309,86.22,14.05]
[1646012156685,23.7827,86.308,86.22,14.05]
[1646012156887,2.28755948,86.307,86.22,14.05]
[1646012157204,5.03434869,86.307,86.22,14.05]
[1646012157603,2.74678921,86.306,86.22,14.05]
[1646012158006,2.74678921,86.306,86.221,6.0]
[1646012158405,2.74678921,86.306,86.222,118.0]
[1646012158608,2.28755948,86.307,86.224,118.0]
[1646012158805,2.28755948,86.307,86.226,118.0]
[1646012159008,2.28755948,86.307,86.231,118.0]
[1646012159205,2.28755948,86.307,86.233,118.0]
[1646012159406,2.28755948,86.307,86.235,118.0]
[1646012159609,3.74671199,86.335,86.237,118.0]
[1646012159610,2.74678921,86.327,86.237,118.0]
[1646012159807,22.596,86.348,86.251,118.0]
[1646012160006,1.76561383,86.347,86.261,118.0]
[1646012160205,1.76561383,86.347,86.27,17.3882]
[1646012160405,1.76561383,86.347,86.271,6.0]
[1646012161610,2.74678921,86.346,86.271,6.0]
[1646012161808,2.74678921,86.346,86.265,6.0]
[1646012162608,1.76561383,86.347,86.265,6.0]
[1646012162810,2.74678921,86.346,86.265,6.0]
[1646012163314,2.74678921,86.346,86.264,53.5152167]
[1646012163710,2.74678921,86.346,86.265,118.0]
[1646012163910,2.74678921,86.346,86.264,53.5152167]
[1646012163911,2.74678921,86.346,86.271,118.0]
[1646012164111,2.74678921,86.358,86.273,118.0]
[1646012164312,1.97046572,86.367,86.275,118.0]
[1646012164510,1.97046572,86.367,86.277,118.0]
[1646012164710,1.97046572,86.367,86.279,118.0]
[1646012164910,1.97046572,86.367,86.281,118.0]
[1646012165210,4.71725493,86.367,86.283,118.0]
[1646012165410,4.71725493,86.367,86.285,118.0]
[1646012165612,4.71725493,86.367,86.286,124.0]
[1646012165814,4.71725493,86.367,86.286,118.0]
[1646012166011,4.71725493,86.367,86.287,6.0]
[1646012166712,1.97046572,86.367,86.288,118.0]
[1646012166914,1.97046572,86.367,86.292,118.0]
[1646012167114,1.97046572,86.367,86.294,118.0]
[1646012167315,1.97046572,86.367,86.296,118.0]
[1646012167513,1.97046572,86.367,86.298,118.0]
[1646012167714,1.97046572,86.367,86.299,6.0]
[1646012168717,1.97046572,86.367,86.292,118.0]
[1646012168718,1.97046572,86.367,86.294,118.0]
[1646012168918,1.97046572,86.367,86.296,118.0]
[1646012169221,1.97046572,86.367,86.298,118.0]
[1646012169418,1.97046572,86.367,86.299,6.0]
[1646012169620,1.97046572,86.367,86.3,118.0]
[1646012169820,2.74678921,86.389,86.302,118.0]
[1646012170018,2.74678921,86.399,86.304,118.0]
[1646012170222,2.74678921,86.399,86.306,118.0]
[1646012170420,2.74678921,86.399,86.305,6.0]
[1646012170421,2.74678921,86.399,86.311,118.0]
[1646012170620,2.74678921,86.399,86.313,118.0]
[1646012170823,2.74678921,86.399,86.315,118.0]
[1646012171021,2.74678921,86.399,86.317,43.56829876]
[1646012171223,112.6,86.412,86.319,118.0]
[1646012171521,17.7724,86.506,86.318,6.0]
[1646012171522,2.74678921,86.409,86.331,118.0]
[1646012171722,2.03247102,86.467,86.34,175.58]
[1646012171923,2.03247102,86.467,86.351,118.0]
[1646012172122,2.03247102,86.467,86.361,118.0]
[1646012172322,2.03247102,86.467,86.363,118.0]
[1646012172521,2.03247102,86.467,86.365,118.0]
[1646012172722,2.57211008,86.476,86.371,118.0]
[1646012172923,0.63014315,86.476,86.381,118.0]
[1646012173125,0.63014315,86.476,86.384,46.71615873]
[1646012173323,0.63014315,86.476,86.386,118.0]
[1646012173524,0.63014315,86.476,86.4,14.05]
[1646012173721,0.63014315,86.476,86.401,6.0]
[1646012173923,0.63014315,86.476,86.34,57.8894]
[1646012174123,112.6,86.465,86.331,8.72]
[1646012174326,1.89720874,86.463,86.331,8.72]
[1646012174525,1.89720874,86.463,86.34,14.05]
[1646012174723,18.27541405,86.462,86.34,14.05]
[1646012174924,8.18191798,86.461,86.341,59.3600983]
[1646012175127,10.92870719,86.461,86.341,59.3600983]
[1646012175323,18.27541405,86.46,86.342,6.0]
[1646012175526,1.89051284,86.459,86.342,6.0]
[1646012175725,4.63730205,86.459,86.342,6.0]
[1646012176035,21.02220326,86.458,86.342,6.0]
[1646012176225,1.86651097,86.457,86.342,6.0]
[1646012176425,2.11022626,86.456,86.342,6.0]
[1646012176625,23.46540285,86.456,86.342,6.0]
[1646012177032,21.35517659,86.455,86.342,6.0]
[1646012177227,1.75669562,86.454,86.342,6.0]
[1646012177426,2.13892138,86.453,86.342,6.0]
[1646012177628,21.35517659,86.453,86.342,6.0]
[1646012177825,1.958445,86.452,86.342,6.0]
[1646012178028,1.90657795,86.451,86.342,6.0]
[1646012178326,8.16725524,86.45,86.342,6.0]
[1646012178529,2.14101505,86.448,86.342,6.0]
[1646012178925,18.60838738,86.447,86.342,6.0]
[1646012179126,1.82993513,86.446,86.342,6.0]
[1646012179425,18.60838738,86.445,86.342,6.0]
[1646012179830,2.14940984,86.444,86.342,6.0]
[1646012180228,2.74678921,86.445,86.343,122.63]
[1646012180426,2.74678921,86.445,86.345,118.0]
[1646012180629,2.74678921,86.445,86.347,118.0]
[1646012180832,2.74678921,86.445,86.343,4.63]
[1646012180833,2.74678921,86.445,86.36,14.05]
[1646012181027,2.74678921,86.445,86.361,6.0]
[1646012182428,6.0,86.444,86.361,6.0]
[1646012182627,31.18958598,86.444,86.361,6.0]
[1646012182829,27.93637519,86.443,86.361,6.0]
[1646012183129,26.90981096,86.442,86.361,6.0]
[1646012183426,1.93673062,86.441,86.36,14.05]
[1646012183628,27.93637519,86.441,86.36,14.05]
[1646012183831,2.74678921,86.441,86.36,14.05]
[1646012184027,2.74678921,86.441,86.361,118.0]
[1646012184229,2.74678921,86.441,86.36,14.05]
[1646012184429,2.74678921,86.441,86.361,6.0]
[1646012184630,2.74678921,86.441,86.362,118.0]
[1646012184829,2.74678921,86.441,86.363,6.0]
[1646012185231,1.92891598,86.451,86.363,6.0]
[1646012185430,1.92891598,86.451,86.361,6.0]
[1646012185634,1.92891598,86.451,86.362,118.0]
[1646012185835,1.92891598,86.451,86.364,118.0]
[1646012186031,2.25743216,86.463,86.368,118.0]
[1646012186231,6.0,86.462,86.381,118.0]
[1646012186435,6.0,86.462,86.383,118.0]
[1646012186636,6.0,86.462,86.38,14.05]
[1646012186637,6.0,86.462,86.385,118.0]
[1646012186833,6.0,86.462,86.391,118.0]
[1646012187034,2.25743216,86.463,86.391,118.0]
[1646012187235,6.0,86.462,86.391,118.0]
[1646012187442,6.0,86.462,86.393,118.0]
[1646012187639,6.0,86.462,86.395,118.0]
[1646012188440,6.0,86.462,86.394,55.34775206]
[1646012188441,2.29828811,86.475,86.397,118.0]
[1646012188644,0.63014315,86.476,86.411,118.0]
[1646012188847,0.63014315,86.476,86.413,118.0]
[1646012190345,0.63014315,86.476,86.415,118.0]
[1646012190544,0.63014315,86.476,86.421,118.0]
[1646012190759,0.63014315,86.476,86.431,118.0]
[1646012191362,0.63014315,86.476,86.43,14.05]
[1646012192161,0.63014315,86.476,86.431,6.0]
[1646012192363,0.63014315,86.476,86.43,14.05]
[1646012195363,2.74678921,86.475,86.423,60.54563308]
[1646012196162,17.12638738,86.474,86.423,60.54563308]
[1646012196561,4.91530188,86.473,86.423,60.54563308]
[1646012196962,0.63014315,86.476,86.423,60.54563308]
[1646012196963,1.75446042,86.471,86.423,60.54563308]
[1646012197564,0.63014315,86.476,86.423,60.54563308]
[1646012197963,2.74678921,86.475,86.423,60.54563308]
[1646012198365,19.87317659,86.475,86.423,60.54563308]
[1646012198565,1.80716166,86.474,86.423,60.54563308]
[1646012198768,4.55395087,86.474,86.423,60.54563308]
[1646012198967,2.74678921,86.473,86.423,60.54563308]
[1646012200168,2.74678921,86.473,86.375,118.0]
[1646012200368,2.06945524,86.471,86.376,6.0]
[1646012200769,2.74678921,86.47,86.376,6.0]
[1646012200968,2.06945524,86.471,86.376,6.0]
[1646012201168,2.06945524,86.471,86.377,44.93181828]
[1646012201367,2.06945524,86.471,86.378,6.0]
[1646012201973,2.06945524,86.471,86.377,44.93181828]
[1646012202869,6.0,86.47,86.377,44.93181828]
[1646012203068,2.06945524,86.471,86.377,44.93181828]
[1646012203271,2.06945524,86.471,86.38,14.05]
[1646012203869,2.06945524,86.471,86.381,118.0]
[1646012204375,2.06945524,86.471,86.383,118.0]
[1646012204573,2.06945524,86.471,86.385,118.0]
[1646012204870,2.06945524,86.471,86.401,118.0]
[1646012205071,2.06945524,86.471,86.411,60.42649885]
[1646012213285,2.06945524,86.471,86.38,14.05]
[1646012213579,2.06945524,86.471,86.35,14.05]
[1646012213580,1.87523914,86.468,86.35,14.05]
[1646012213778,1.87523914,86.468,86.341,49.2588]
[1646012213980,118.0,86.469,86.341,49.2588]
[1646012213981,118.0,86.466,86.343,118.0]
[1646012214180,1.78251647,86.465,86.344,6.0]
[1646012214479,1.78251647,86.465,86.342,6.0]
[1646012214480,2.07290177,86.459,86.345,51.86785923]
[1646012214681,24.108,86.458,86.345,51.86785923]
[1646012214979,1.92136465,86.457,86.347,118.0]
[1646012215180,1.92136465,86.457,86.361,118.0]
[1646012215380,1.92136465,86.457,86.363,118.0]
[1646012215579,1.92136465,86.457,86.362,6.0]
[1646012215580,1.92136465,86.457,86.365,118.0]
[1646012215781,1.92136465,86.457,86.366,124.0]
[1646012215980,1.92136465,86.457,86.368,118.0]
[1646012216280,1.92136465,86.457,86.371,50.25382515]
[1646012216480,1.92136465,86.457,86.372,124.0]
[1646012216882,1.92136465,86.457,86.372,126.74678921]
[1646012217084,1.8675827,86.469,86.372,126.74678921]
[1646012218084,1.8675827,86.469,86.372,124.0]
[1646012218482,2.13808123,86.467,86.372,124.0]
[1646012220685,2.13808123,86.467,86.373,2.74678921]
[1646012220886,2.13808123,86.467,86.375,118.0]
[1646012221084,2.13808123,86.467,86.391,118.0]
[1646012221383,2.13808123,86.467,86.401,53.42218696]
[1646012222984,2.13808123,86.467,86.402,118.0]
[1646012223586,2.13808123,86.467,86.404,118.0]
[1646012223785,2.17488675,86.495,86.406,118.0]
[1646012223985,2.17488675,86.495,86.42,14.05]
[1646012224188,2.17488675,86.495,86.41,14.05]
[1646012224388,2.17488675,86.495,86.411,6.0]
[1646012224588,2.17488675,86.495,86.41,14.05]
[1646012226090,2.17488675,86.495,86.411,124.0]
[1646012226488,2.17488675,86.495,86.411,6.0]
[1646012227591,2.17488675,86.495,86.41,14.05]
[1646012227990,3.37693236,86.476,86.401,53.42218696]
[1646012229792,6.0,86.475,86.401,53.42218696]
[1646012229996,28.9266,86.475,86.401,53.42218696]
[1646012230196,4.86446764,86.474,86.401,53.42218696]
[1646012230393,4.86446764,86.474,86.35,22.7089]
[1646012230394,120.74678921,86.474,86.35,22.7089]
[1646012230595,118.0,86.469,86.36,14.05]
[1646012230793,1.88285325,86.468,86.35,14.05]
[1646012230996,1.77246337,86.465,86.35,14.05]
[1646012231398,1.77246337,86.465,86.352,59.86891448]
[1646012231595,2.15581897,86.459,86.353,6.0]
[1646012232020,2.74678921,86.458,86.353,6.0]
[1646012232215,2.74678921,86.458,86.354,118.0]
[1646012232415,2.74678921,86.458,86.356,118.0]
[1646012232625,2.74678921,86.458,86.37,14.05]
[1646012233017,2.15527456,86.457,86.37,14.05]
[1646012233218,2.272621,86.456,86.352,59.86891448]
[1646012233421,2.18464908,86.453,86.352,59.86891448]
[1646012233817,2.27695623,86.448,86.352,59.86891448]
[1646012234220,1.87486145,86.445,86.352,59.86891448]
[1646012234618,118.0,86.443,86.352,59.86891448]
[1646012234919,118.0,86.441,86.352,59.86891448]
[1646012235119,2.08106692,86.438,86.352,59.86891448]
[1646012235321,1.92400033,86.428,86.29,14.05]
[1646012235518,14.05,86.43,86.28,14.05]
[1646012235519,1.91114224,86.425,86.28,14.05]
[1646012235818,2.30011935,86.408,86.28,14.05]
[1646012236117,2.30011935,86.408,86.29,14.05]
[1646012236317,1.88145938,86.405,86.334,43.73710799]
[1646012236721,2.00481491,86.403,86.334,43.73710799]
[1646012237119,29.47140557,86.402,86.334,43.73710799]
[1646012237418,1.84357131,86.401,86.334,43.73710799]
[1646012237620,29.47140557,86.401,86.334,43.73710799]
[1646012237822,2.08384827,86.399,86.334,43.73710799]
[1646012238220,2.74678921,86.398,86.334,43.73710799]
[1646012238719,4.91830469,86.398,86.334,43.73710799]
[1646012238920,6.0,86.397,86.334,43.73710799]
[1646012239120,8.74678921,86.397,86.334,43.73710799]
[1646012239320,2.74678921,86.397,86.334,43.73710799]
[1646012239519,2.20849622,86.408,86.334,43.73710799]
[1646012239919,4.95528543,86.408,86.334,43.73710799]
[1646012240123,122.95528543,86.408,86.31,14.05]
[1646012240323,118.0,86.406,86.29,14.05]
[1646012240521,1.82920668,86.405,86.29,14.05]
[1646012240721,4.57599589,86.405,86.29,14.05]
[1646012240924,4.57599589,86.405,86.275,17.2099]
[1646012240925,118.0,86.399,86.266,2.74678921]
[1646012241122,2.10817199,86.396,86.278,48.53600283]
[1646012241323,2.10817199,86.396,86.28,14.05]
[1646012241521,2.74678921,86.395,86.28,14.05]
[1646012241927,118.0,86.394,86.28,14.05]
[1646012242322,4.5736221,86.393,86.28,14.05]
[1646012242522,2.0344045,86.389,86.28,14.05]
[1646012242926,2.74678921,86.388,86.281,147.4653]
[1646012243122,2.74678921,86.388,86.281,29.4653]
[1646012243523,2.01890405,86.386,86.281,29.4653]
[1646012243924,4.74252914,86.385,86.281,29.4653]
[1646012244126,6.0,86.384,86.281,29.4653]
[1646012244333,8.74678921,86.384,86.281,29.4653]
[1646012244725,2.74678921,86.383,86.281,23.4653]
[1646012244928,120.74678921,86.383,86.281,23.4653]
[1646012245124,1.715903,86.382,86.281,23.4653]
[1646012245326,4.46269221,86.382,86.281,23.4653]
[1646012245727,2.74678921,86.381,86.281,23.4653]
[1646012246327,2.74678921,86.381,86.28,14.05]
[1646012246526,2.74678921,86.381,86.278,48.53600283]
[1646012246527,120.2365281,86.379,86.278,48.53600283]
[1646012246728,118.0,86.369,86.278,48.53600283]
[1646012246927,2.1428845,86.366,86.278,48.53600283]
[1646012247528,2.74678921,86.365,86.278,48.53600283]
[1646012247730,2.26992286,86.362,86.278,48.53600283]
[1646012248130,2.74678921,86.361,86.278,48.53600283]
[1646012248529,1.79519823,86.363,86.278,48.53600283]
[1646012250327,5.04854095,86.362,86.278,48.53600283]
[1646012250527,2.74678921,86.362,86.278,48.53600283]
[1646012250730,2.74678921,86.361,86.278,48.53600283]
[1646012251730,27.04473891,86.361,86.252,46.9756]
[1646012251930,1.79462419,86.359,86.253,6.0]
[1646012252128,1.79462419,86.359,86.251,6.0]
[1646012252330,2.15574297,86.356,86.241,6.0]
[1646012252530,17.3965,86.35,86.241,6.0]
[1646012252730,2.17737003,86.348,86.242,56.83568243]
[1646012252930,2.17737003,86.348,86.243,115.8]
[1646012253331,2.17737003,86.348,86.245,115.8]
[1646012253731,2.17737003,86.348,86.25,14.05]
[1646012253931,2.17737003,86.348,86.251,121.8]
[1646012254131,2.17737003,86.348,86.251,124.54678921]
[1646012254329,1.98671211,86.348,86.251,124.54678921]
[1646012256934,2.25939317,86.373,86.252,4.87501583]
[1646012257132,2.25939317,86.373,86.255,2.24807016]
[1646012257333,2.24294794,86.372,86.258,2.09151125]
[1646012257534,1.82643569,86.371,86.271,115.8]
[1646012257733,1.82643569,86.371,86.27,14.05]
[1646012257734,24.3645,86.385,86.273,173.3526678]
[1646012257933,2.1854627,86.384,86.275,115.8]
[1646012258134,2.1854627,86.384,86.281,115.8]
[1646012258335,2.1854627,86.384,86.283,115.8]
[1646012258538,2.01675968,86.367,86.283,115.8]
[1646012258735,2.01675968,86.367,86.284,6.0]
[1646012259037,2.01675968,86.367,86.282,6.0]
[1646012259237,1.98309237,86.365,86.28,14.05]
[1646012259636,50.17638303,86.364,86.28,14.05]
[1646012259837,1.72690865,86.363,86.28,14.05]
[1646012260137,27.26419168,86.363,86.28,14.05]
[1646012260336,30.29884088,86.362,86.276,24.1915]
[1646012260537,2.06449976,86.361,86.276,24.1915]
[1646012260737,30.348572,86.361,86.276,24.1915]
[1646012260939,27.20126119,86.36,86.276,24.1915]
[1646012261139,1.81464046,86.359,86.276,24.1915]
[1646012261438,28.28407224,86.359,86.276,24.1915]
[1646012261640,2.08430173,86.357,86.276,24.1915]
[1646012261840,2.08430173,86.357,86.276,22.6915]
[1646012262038,28.28407224,86.356,86.276,22.6915]
[1646012262237,28.28407224,86.356,86.26,24.261]
[1646012262238,115.8,86.355,86.26,24.261]
[1646012262438,1.6611107,86.354,86.26,24.261]
[1646012262638,29.94518294,86.354,86.26,24.261]
[1646012262838,28.28407224,86.354,86.26,24.261]
[1646012263037,52.78137224,86.353,86.26,24.261]
[1646012263237,1.68555515,86.352,86.26,24.261]
[1646012263437,4.43234436,86.352,86.26,24.261]
[1646012263841,2.74678921,86.351,86.26,24.261]
[1646012264640,1.68555515,86.352,86.26,24.261]
[1646012264841,1.68555515,86.352,86.261,115.8]
[1646012265041,1.68555515,86.352,86.26,24.261]
[1646012265241,2.74678921,86.351,86.26,24.261]
[1646012265641,1.68555515,86.352,86.26,24.261]
[1646012266040,2.74678921,86.351,86.26,24.261]
[1646012266242,2.74678921,86.351,86.274,115.8]
[1646012266442,24.4973,86.353,86.26,38.311]
[1646012266640,24.4973,86.353,86.261,4.634]
[1646012266843,2.27524132,86.352,86.261,4.634]
[1646012267241,8.74678921,86.351,86.27,14.05]
[1646012267444,8.74678921,86.351,86.262,23.3784]
[1646012267843,2.74678921,86.35,86.262,23.3784]
[1646012270345,118.54678921,86.35,86.262,23.3784]
[1646012270545,2.17988811,86.349,86.262,23.3784]
[1646012270746,4.92667732,86.349,86.261,4.634]
[1646012270946,115.8,86.347,86.261,4.634]
[1646012271146,1.77989848,86.346,86.261,4.634]
[1646012271347,115.8,86.345,86.261,4.634]
[1646012271549,115.8,86.339,86.261,4.634]
[1646012271746,115.8,86.339,86.261,50.75992776]
[1646012271747,2.0786241,86.338,86.261,50.75992776]
[1646012272146,2.07481123,86.336,86.261,4.634]
[1646012272647,2.19454832,86.333,86.261,4.634]
[1646012273046,2.74678921,86.332,86.262,44.98543252]
[1646012274466,6.0,86.331,86.262,44.98543252]
[1646012274866,8.74678921,86.331,86.262,44.98543252]
[1646012276468,25.53728303,86.33,86.261,4.634]
[1646012276671,2.17994486,86.329,86.261,4.634]
[1646012276868,4.92673407,86.329,86.261,4.634]
[1646012277070,25.53728303,86.328,86.261,4.634]
[1646012277368,2.06298003,86.327,86.261,4.634]
[1646012277568,4.80976924,86.327,86.261,4.634]
[1646012277770,2.74678921,86.326,86.256,54.56310091]
[1646012277968,4.91280377,86.326,86.256,54.56310091]
[1646012278370,2.74678921,86.325,86.256,54.56310091]
[1646012278976,6.0,86.324,86.256,54.56310091]
[1646012279573,6.0,86.324,86.223,115.8]
[1646012279773,6.0,86.324,86.222,22.8756]
[1646012279774,1.97291161,86.322,86.226,115.8]
[1646012279974,1.97291161,86.322,86.227,6.0]
[1646012280175,2.74678921,86.321,86.228,115.8]
[1646012280377,28.28407224,86.321,86.229,6.0]
[1646012280576,2.2691999,86.32,86.23,59.48059554]
[1646012280774,2.22234175,86.319,86.23,59.48059554]
[1646012280974,27.75962478,86.319,86.23,59.48059554]
[1646012281274,2.02580417,86.317,86.23,59.48059554]
[1646012281679,1.83934679,86.315,86.23,59.48059554]
[1646012281874,1.79223908,86.314,86.23,59.48059554]
[1646012282074,1.79223908,86.314,86.222,22.8756]
[1646012282075,1.96680601,86.312,86.222,22.8756]
[1646012282274,1.9969827,86.31,86.222,22.8756]
[1646012282676,2.74678921,86.309,86.222,22.8756]
[1646012282876,1.75609768,86.308,86.222,22.8756]
[1646012283076,27.29338071,86.308,86.223,45.68681744]
[1646012283375,1.93414281,86.306,86.223,45.68681744]
[1646012283778,2.74678921,86.305,86.223,45.68681744]
[1646012284184,28.28407224,86.305,86.223,45.68681744]
[1646012284378,1.66442334,86.303,86.18,14.05]
[1646012284579,115.8,86.299,86.17,14.05]
[1646012284778,1.99541721,86.296,86.192,22.7828]
[1646012284982,1.99541721,86.296,86.193,6.0]
[1646012285183,2.74678921,86.295,86.193,6.0]
[1646012285382,2.74678921,86.295,86.223,200.0]
[1646012285580,1.99541721,86.296,86.224,47.52710995]
[1646012286380,6.0,86.295,86.224,47.52710995]
[1646012286579,1.99541721,86.296,86.224,47.52710995]
[1646012287882,1.99541721,86.296,86.225,121.8]
[1646012288082,2.09282665,86.31,86.225,115.8]
[1646012288282,2.09282665,86.31,86.225,118.54678921]
[1646012288484,2.09282665,86.31,86.226,2.74678921]
[1646012289286,2.09282665,86.31,86.228,115.8]
[1646012289483,2.09282665,86.31,86.229,6.0]
[1646012289683,2.09282665,86.31,86.229,8.74678921]
[1646012289882,2.09282665,86.31,86.229,2.74678921]